fUSD/lending_fUSD_20250514
["ID","MTS","AMOUNT","RATE_DAILY","PERIOD"]
[361032844,1747209135623,-230.40566493,0.00015068,2]
[361032845,1747209135634,-1031.46,0.00015068,2]
[361032846,1747209135644,-415.13,0.00015068,2]
[361032847,1747209135655,-915.16,0.00015068,2]
[361032848,1747209135666,-614.08,0.00015068,2]
[361032849,1747209135676,-400.0,0.00015068,2]
[361032850,1747209135686,-8117.6,0.00015068,2]
[361032851,1747209135697,-414.74222576,0.00015068,2]
[361032852,1747209135707,-400.0,0.00015068,2]
[361032853,1747209135718,-1273.28,0.00015068,2]
[361032854,1747209135728,-538.01572552,0.00015068,2]
[361032855,1747209135738,-400.0,0.00015068,2]
[361032856,1747209135748,-400.0,0.00015068,2]
[361032857,1747209135760,-2424.58,0.00015068,2]
[361032858,1747209135770,-447.54,0.00015068,2]
[361032859,1747209135780,-400.0,0.00015068,2]
[361032860,1747209135791,-723.09,0.00015068,2]
[361032861,1747209135801,-1958.39,0.00015068,2]
[361032862,1747209135811,-422.1,0.00015068,2]
[361032863,1747209135823,-2526.26,0.00015068,2]
[361032864,1747209135833,-803.6,0.00015068,2]
[361032865,1747209135844,-2914.11,0.00015068,2]
[361032866,1747209135854,-8091.9,0.00015068,2]
[361032867,1747209135864,-599.26,0.00015068,2]
[361032868,1747209135875,-905.05,0.00015068,2]
[361032869,1747209135885,-805.31,0.00015068,2]
[361032870,1747209135896,-1722.0,0.00015068,2]
[361032871,1747209135907,-400.0,0.00015068,2]
[361032872,1747209135918,-981.33,0.00015068,2]
[361032873,1747209135929,-300.0,0.00015068,2]
[361032874,1747209135939,-470.15,0.00015137,2]
[361032875,1747209135949,-1517.64,0.000153,2]
[361032876,1747209135959,-192.866883,0.00015341,2]
[361032877,1747209135969,-192.866883,0.00015341,2]
[361032878,1747209135979,-335.708552,0.00015341,2]
[361032879,1747209135989,-335.708552,0.00015341,2]
[361032880,1747209135999,-151.0,0.00015341,2]
[361032881,1747209136011,-400.0,0.00015341,2]
[361032882,1747209136022,-528.13,0.00015341,2]
[361032883,1747209136032,-816.27,0.00015341,2]
[361032884,1747209136042,-679.38,0.00015341,2]
[361032885,1747209136052,-1053.164603,0.00015341,2]
[361032886,1747209136063,-1053.164603,0.00015341,2]
[361032887,1747209136073,-400.0,0.00015342,2]
[361032888,1747209136084,-454.938028,0.00015342,2]
[361032889,1747209136094,-454.938028,0.00015342,2]
[361032890,1747209136104,-151.0,0.00015342,2]
[361032891,1747209136115,-151.0,0.00015342,2]
[361032892,1747209136125,-151.0,0.00015342,2]
[361032893,1747209136135,-598.264816,0.00015342,2]
[361032894,1747209136145,-151.0,0.00015342,2]
[361032895,1747209136155,-703.18,0.00015342,2]
[361032896,1747209136165,-151.0,0.00015342,2]
[361032897,1747209136175,-151.0,0.00015342,2]
[361032898,1747209136185,-235.889491,0.00015342,2]
[361032899,1747209136195,-235.889491,0.00015342,2]
[361032900,1747209136204,-203.093842,0.00015342,2]
[361032901,1747209136214,-203.093842,0.00015342,2]
[361032902,1747209136224,-151.0,0.00015342,2]
[361032903,1747209136234,-151.0,0.00015342,2]
[361032904,1747209136244,-596.11,0.00015342,2]
[361032905,1747209136254,-400.0,0.00015342,2]
[361032906,1747209136265,-711.57,0.00015342,2]
[361032907,1747209136275,-737.65,0.00015342,2]
[361032908,1747209136285,-672.9,0.00015342,2]
[361032909,1747209136295,-460.32,0.00015342,2]
[361032910,1747209136305,-400.0,0.00015342,2]
[361032911,1747209136315,-400.0,0.00015342,2]
[361032912,1747209136325,-939.06,0.00015342,2]
[361032913,1747209136335,-436.72,0.00015342,2]
[361032914,1747209136345,-400.0,0.00015342,2]
[361032915,1747209136356,-1236.03,0.00015342,2]
[361032916,1747209136366,-882.64,0.00015342,2]
[361032917,1747209136380,-400.0,0.00015342,2]
[361032918,1747209136390,-483.18,0.00015342,2]
[361032919,1747209136400,-400.0,0.00015342,2]
[361032920,1747209136411,-400.0,0.00015342,2]
[361032921,1747209136421,-479.52,0.00015342,2]
[361032922,1747209136432,-634.51,0.00015342,2]
[361032923,1747209136441,-435.37,0.00015342,2]
[361032924,1747209136453,-596.16,0.00015342,2]
[361032925,1747209136464,-494.69,0.00015342,2]
[361032926,1747209136474,-400.0,0.00015342,2]
[361032927,1747209136484,-363.88416869,0.00015342,2]
[361032928,1747209136736,-400.0,0.00015342,2]
[361032929,1747209136750,-599.12,0.00015342,2]
[361032930,1747209136761,-400.0,0.00015342,2]
[361032931,1747209136771,-1062.41,0.00015342,2]
[361032932,1747209136782,-329.70992273,0.00015342,2]
[361032933,1747209136792,-400.0,0.00015342,2]
[361032934,1747209136803,-1179.96,0.00015342,2]
[361032935,1747209136813,-450.9,0.00015342,2]
[361032936,1747209136823,-884.53,0.00015342,2]
[361032937,1747209136833,-1027.84,0.00015342,2]
[361032938,1747209136843,-1395.43,0.00015342,2]
[361032939,1747209136854,-543.81,0.00015342,2]
[361032940,1747209136864,-688.09,0.00015342,2]
[361032941,1747209136874,-540.49,0.00015342,2]
[361032942,1747209136884,-545.09,0.00015342,2]
[361032943,1747209136894,-1082.93,0.00015342,2]
[361032944,1747209136904,-476.99,0.00015342,2]
[361032945,1747209136914,-502.4,0.00015342,2]
[361032946,1747209136924,-400.0,0.00015342,2]
[361032947,1747209136933,-518.03,0.00015342,2]
[361032948,1747209136943,-400.0,0.00015342,2]
[361032949,1747209136953,-400.0,0.00015342,2]
[361032950,1747209136963,-2119.41,0.00015342,2]
[361032951,1747209136972,-528.83,0.00015342,2]
[361032952,1747209136982,-1034.94,0.00015342,2]
[361032953,1747209136991,-521.6,0.00015342,2]
[361032954,1747209137001,-833.6,0.00015342,2]
[361032955,1747209137010,-1089.67,0.00015342,2]
[361032956,1747209137020,-855.81,0.00015342,2]
[361032957,1747209137030,-649.48,0.00015342,2]
[361032958,1747209137040,-662.78,0.00015342,2]
[361032959,1747209137049,-1112.52,0.00015342,2]
[361032960,1747209137059,-450.15,0.00015342,2]
[361032961,1747209137068,-400.0,0.00015342,2]
[361032962,1747209137079,-670.7,0.00015342,2]
[361032963,1747209137088,-665.82,0.00015342,2]
[361032964,1747209137099,-400.0,0.00015342,2]
[361032965,1747209137110,-400.0,0.00015342,2]
[361032966,1747209137120,-936.51,0.00015342,2]
[361032967,1747209137130,-1073.27,0.00015342,2]
[361032968,1747209137141,-1216.82,0.00015342,2]
[361032969,1747209137150,-400.0,0.00015342,2]
[361032970,1747209137160,-400.0,0.00015342,2]
[361032971,1747209137169,-400.0,0.00015342,2]
[361032972,1747209137180,-909.1,0.00015342,2]
[361032973,1747209137190,-1630.94,0.00015342,2]
[361032974,1747209137200,-400.0,0.00015342,2]
[361032975,1747209137209,-565.83,0.00015342,2]
[361032976,1747209137219,-1329.57,0.00015342,2]
[361032977,1747209137230,-1847.25,0.00015342,2]
[361032978,1747209137240,-400.0,0.00015342,2]
[361032979,1747209137250,-422.51,0.00015342,2]
[361032980,1747209137261,-400.0,0.00015342,2]
[361032981,1747209137270,-876.56,0.00015342,2]
[361032982,1747209137281,-2140.12,0.00015342,2]
[361032983,1747209137291,-571.96,0.00015342,2]
[361032984,1747209137301,-410.56,0.00015342,2]
[361032985,1747209137311,-892.67,0.00015342,2]
[361032986,1747209137321,-172.31147145,0.00015342,2]
[361032987,1747209137331,-400.0,0.00015342,2]
[361032988,1747209137341,-400.0,0.00015342,2]
[361032989,1747209137351,-1074.21,0.00015342,2]
[361032990,1747209137362,-507.63,0.00015342,2]
[361032991,1747209137377,-2412.67,0.00015342,2]
[361032992,1747209137387,-400.0,0.00015342,2]
[361032993,1747209137397,-1071.37,0.00015342,2]
[361032994,1747209137406,-400.0,0.00015342,2]
[361032995,1747209137416,-585.74,0.00015342,2]
[361032996,1747209137426,-1055.84,0.00015342,2]
[361032997,1747209137437,-1569.68,0.00015342,2]
[361032998,1747209137447,-3342.19,0.00015342,2]
[361032999,1747209137458,-1011.98,0.00015342,2]
[361033000,1747209137468,-437.7,0.00015342,2]
[361033001,1747209137477,-841.38,0.00015342,2]
[361033002,1747209137486,-2138.29,0.00015342,2]
[361033003,1747209137496,-931.09,0.00015342,2]
[361033004,1747209137505,-400.03,0.00015342,2]
[361033005,1747209137516,-799.14,0.00015342,2]
[361033006,1747209137526,-561.99,0.00015342,2]
[361033007,1747209137536,-447.86,0.00015342,2]
[361033008,1747209137546,-1791.98,0.00015342,2]
[361033009,1747209137556,-1506.45,0.00015342,2]
[361033010,1747209137566,-1248.25,0.00015342,2]
[361033011,1747209137576,-500.31,0.00015342,2]
[361033012,1747209137586,-400.0,0.00015342,2]
[361033013,1747209137596,-466.29,0.00015342,2]
[361033014,1747209137606,-559.56,0.00015342,2]
[361033015,1747209137616,-499.83,0.00015342,2]
[361033016,1747209137627,-400.0,0.00015342,2]
[361033017,1747209137638,-648.49,0.00015342,2]
[361033018,1747209137648,-400.0,0.00015342,2]
[361033019,1747209137658,-735.21,0.00015342,2]
[361033020,1747209137669,-2396.6,0.00015342,2]
[361033021,1747209137679,-488.25,0.00015342,2]
[361033022,1747209137689,-686.74,0.00015342,2]
[361033023,1747209137698,-663.93,0.00015342,2]
[361033024,1747209137708,-400.0,0.00015342,2]
[361033025,1747209137718,-765.05,0.00015342,2]
[361033026,1747209137728,-400.0,0.00015342,2]
[361033027,1747209137739,-274.58161391,0.00015342,2]
[361033028,1747209137749,-837.82,0.00015342,2]
[361033029,1747209137759,-846.38,0.00015342,2]
[361033030,1747209137769,-713.16,0.00015342,2]
[361033031,1747209137779,-544.35,0.00015342,2]
[361033032,1747209137789,-1073.49,0.00015342,2]
[361033033,1747209137799,-452.73,0.00015342,2]
[361033034,1747209137809,-400.0,0.00015342,2]
[361033035,1747209137819,-400.0,0.00015342,2]
[361033036,1747209137829,-610.73,0.00015342,2]
[361033037,1747209137839,-1075.48,0.00015342,2]
[361033038,1747209137849,-400.0,0.00015342,2]
[361033039,1747209137859,-442.29,0.00015342,2]
[361033040,1747209137869,-400.0,0.00015342,2]
[361033041,1747209137879,-1807.34,0.00015342,2]
[361033042,1747209137889,-400.0,0.00015342,2]
[361033043,1747209137900,-561.75,0.00015342,2]
[361033044,1747209137910,-546.56,0.00015342,2]
[361033045,1747209137920,-504.1,0.00015342,2]
[361033046,1747209137930,-690.43,0.00015342,2]
[361033047,1747209137940,-2472.70006,0.00015342,2]
[361033048,1747209137949,-400.0,0.00015342,2]
[361033049,1747209137959,-416.24,0.00015342,2]
[361033050,1747209137968,-2472.70006,0.00015342,2]
[361033051,1747209137977,-402.6,0.00015342,2]
[361033052,1747209137988,-400.0,0.00015342,2]
[361033053,1747209137997,-400.0,0.00015342,2]
[361033054,1747209138007,-1113.76,0.00015342,2]
[361033055,1747209138017,-1405.65,0.00015342,2]
[361033056,1747209138027,-468.31,0.00015342,2]
[361033057,1747209138037,-1001.39,0.00015342,2]
[361033058,1747209138046,-665.02,0.00015342,2]
[361033059,1747209138057,-777.85,0.00015342,2]
[361033060,1747209138067,-2209.78,0.00015342,2]
[361033061,1747209138078,-542.27,0.00015342,2]
[361033062,1747209138088,-400.0,0.00015342,2]
[361033063,1747209138099,-400.0,0.00015342,2]
[361033064,1747209138110,-1048.34,0.00015342,2]
[361033065,1747209138120,-400.0,0.00015342,2]
[361033066,1747209138130,-1451.38,0.00015342,2]
[361033067,1747209138139,-619.23,0.00015342,2]
[361033068,1747209138150,-2336.68,0.00015342,2]
[361033069,1747209138160,-845.06,0.00015342,2]
[361033070,1747209138170,-400.0,0.00015342,2]
[361033071,1747209138184,-1320.89,0.00015342,2]
[361033072,1747209138194,-400.0,0.00015342,2]
[361033073,1747209138204,-666.66,0.00015342,2]
[361033074,1747209138214,-663.81,0.00015342,2]
[361033075,1747209138223,-400.0,0.00015342,2]
[361033076,1747209138233,-400.0,0.00015342,2]
[361033077,1747209138243,-541.3,0.00015342,2]
[361033078,1747209138253,-400.0,0.00015342,2]
[361033079,1747209138263,-400.0,0.00015342,2]
[361033080,1747209138273,-1134.08,0.00015342,2]
[361033081,1747209138283,-445.33,0.00015342,2]
[361033082,1747209138294,-1257.84,0.00015342,2]
[361033083,1747209138304,-575.36,0.00015342,2]
[361033084,1747209138314,-1007.26,0.00015342,2]
[361033085,1747209138324,-400.0,0.00015342,2]
[361033086,1747209138334,-659.39,0.00015342,2]
[361033087,1747209138344,-1204.75,0.00015342,2]
[361033088,1747209138354,-400.98,0.00015342,2]
[361033089,1747209138365,-906.35,0.00015342,2]
[361033090,1747209138378,-1524.33,0.00015342,2]
[361033091,1747209138388,-466.88,0.00015342,2]
[361033092,1747209138399,-774.55,0.00015342,2]
[361033093,1747209138410,-400.0,0.00015342,2]
[361033094,1747209138420,-873.16,0.00015342,2]
[361033095,1747209138431,-523.37,0.00015342,2]
[361033096,1747209138441,-4342.01,0.00015342,2]
[361033097,1747209138455,-352.56,0.00015342,2]
[361033098,1747209138466,-3290.66,0.00015342,2]
[361033099,1747209138477,-620.73,0.00015342,2]
[361033100,1747209138488,-1318.63,0.00015342,2]
[361033101,1747209138499,-400.0,0.00015342,2]
[361033102,1747209138511,-794.74,0.00015342,2]
[361033103,1747209138522,-305.46071148,0.00015342,2]
[361033104,1747209138533,-496.52,0.00015342,2]
[361033105,1747209138543,-400.0,0.00015342,2]
[361033106,1747209138553,-903.19,0.00015342,2]
[361033107,1747209138563,-824.62,0.00015342,2]
[361033108,1747209138574,-1186.62,0.00015342,2]
[361033109,1747209138585,-525.47,0.00015342,2]
[361033110,1747209138595,-400.0,0.00015342,2]
[361033111,1747209138606,-992.09,0.00015342,2]
[361033112,1747209138615,-507.48,0.00015342,2]
[361033113,1747209138625,-1186.0,0.00015342,2]
[361033114,1747209138635,-871.03,0.00015342,2]
[361033115,1747209138644,-8303.1,0.00015342,2]
[361033116,1747209138654,-2394.97,0.00015342,2]
[361033117,1747209138664,-635.51,0.00015342,2]
[361033118,1747209138675,-400.0,0.00015342,2]
[361033119,1747209138685,-635.86,0.00015342,2]
[361033120,1747209138695,-483.25,0.00015342,2]
[361033121,1747209138705,-762.97,0.00015342,2]
[361033122,1747209138715,-539.78,0.00015342,2]
[361033123,1747209138724,-400.0,0.00015342,2]
[361033124,1747209138734,-566.07,0.00015342,2]
[361033125,1747209138744,-400.0,0.00015342,2]
[361033126,1747209138753,-400.0,0.00015342,2]
[361033127,1747209138763,-3884.54,0.00015342,2]
[361033128,1747209138773,-9332.17,0.00015342,2]
[361033129,1747209138783,-400.0,0.00015342,2]
[361033130,1747209138793,-521.21,0.00015342,2]
[361033131,1747209138803,-1359.75,0.00015342,2]
[361033132,1747209138812,-1804.54,0.00015342,2]
[361033133,1747209138821,-3867.76,0.00015342,2]
[361033134,1747209138830,-1228.35,0.00015342,2]
[361033135,1747209138839,-454.4,0.00015342,2]
[361033136,1747209138849,-400.0,0.00015342,2]
[361033137,1747209138859,-470.84,0.00015342,2]
[361033138,1747209138868,-451.23,0.00015342,2]
[361033139,1747209138878,-1518.64,0.00015342,2]
[361033140,1747209138888,-3045.01,0.00015342,2]
[361033141,1747209138898,-3381.56,0.00015342,2]
[361033142,1747209138907,-7510.59,0.00015342,2]
[361033143,1747209138916,-983.94,0.00015342,2]
[361033144,1747209138926,-480.02,0.00015342,2]
[361033145,1747209138935,-616.03,0.00015342,2]
[361033146,1747209138944,-585.46,0.00015342,2]
[361033147,1747209138954,-400.0,0.00015342,2]
[361033148,1747209138964,-1727.32,0.00015342,2]
[361033149,1747209138973,-1174.5,0.00015342,2]
[361033150,1747209138984,-824.11,0.00015342,2]
[361033151,1747209138993,-400.0,0.00015342,2]
[361033152,1747209139003,-901.12,0.00015342,2]
[361033153,1747209139013,-400.0,0.00015342,2]
[361033154,1747209139021,-400.0,0.00015342,2]
[361033155,1747209139030,-465.08,0.00015342,2]
[361033156,1747209139039,-400.0,0.00015342,2]
[361033157,1747209139048,-975.74,0.00015342,2]
[361033158,1747209139058,-1658.78,0.00015342,2]
[361033159,1747209139067,-490.16,0.00015342,2]
[361033160,1747209139077,-700.75,0.00015342,2]
[361033161,1747209139087,-2190.3,0.00015342,2]
[361033162,1747209139097,-803.12,0.00015342,2]
[361033163,1747209139107,-400.0,0.00015342,2]
[361033164,1747209139116,-1386.9,0.00015342,2]
[361033165,1747209139127,-324.72403714,0.00015342,2]
[361033166,1747209139227,-400.0,0.00015342,2]
[361033167,1747209139238,-485.56,0.00015342,2]
[361033168,1747209139248,-1242.02,0.00015342,2]
[361033169,1747209139259,-790.06,0.00015342,2]
[361033170,1747209139270,-202.71431066,0.00015342,2]
[361033171,1747209139281,-1050.16,0.00015342,2]
[361033172,1747209139291,-400.0,0.00015342,2]
[361033173,1747209139301,-21204.56,0.00015342,2]
[361033174,1747209139310,-1025.65,0.00015342,2]
[361033175,1747209139320,-400.0,0.00015342,2]
[361033176,1747209139329,-462.47,0.00015342,2]
[361033177,1747209139339,-489.88,0.00015342,2]
[361033178,1747209139349,-1903.72,0.00015342,2]
[361033179,1747209139359,-903.36,0.00015342,2]
[361033180,1747209139371,-400.0,0.00015342,2]
[361033181,1747209139382,-620.740344,0.00015342,2]
[361033182,1747209139392,-433.44,0.00015342,2]
[361033183,1747209139402,-460.59,0.00015342,2]
[361033184,1747209139413,-620.740344,0.00015342,2]
[361033185,1747209139423,-1352.46,0.00015342,2]
[361033186,1747209139433,-2297.07,0.00015342,2]
[361033187,1747209139442,-5802.65,0.00015342,2]
[361033188,1747209139453,-713.5,0.00015342,2]
[361033189,1747209139464,-1266.9,0.00015342,2]
[361033190,1747209139473,-1158.53,0.00015342,2]
[361033191,1747209139483,-434.56,0.00015342,2]
[361033192,1747209139492,-1010.68,0.00015342,2]
[361033193,1747209139501,-484.69,0.00015342,2]
[361033194,1747209139512,-1095.0,0.00015342,2]
[361033195,1747209139522,-1932.75,0.00015342,2]
[361033196,1747209139532,-435.72,0.00015342,2]
[361033197,1747209139542,-1315.66,0.00015342,2]
[361033198,1747209139551,-457.59,0.00015342,2]
[361033199,1747209139561,-496.1,0.00015342,2]
[361033200,1747209139570,-814.19,0.00015342,2]
[361033201,1747209139580,-459.36,0.00015342,2]
[361033202,1747209139590,-5005.62,0.00015342,2]
[361033203,1747209139599,-615.67,0.00015342,2]
[361033204,1747209139609,-4200.08,0.00015342,2]
[361033205,1747209139619,-402.79,0.00015342,2]
[361033206,1747209139629,-400.0,0.00015342,2]
[361033207,1747209139638,-1129.39,0.00015342,2]
[361033208,1747209139648,-695.95,0.00015342,2]
[361033209,1747209139658,-558.35,0.00015342,2]
[361033210,1747209139668,-900.7,0.00015342,2]
[361033211,1747209139678,-2565.38,0.00015342,2]
[361033212,1747209139688,-1206.83,0.00015342,2]
[361033213,1747209139698,-400.0,0.00015342,2]
[361033214,1747209139708,-905.95,0.00015342,2]
[361033215,1747209139718,-461.69,0.00015342,2]
[361033216,1747209139727,-400.0,0.00015342,2]
[361033217,1747209139737,-704.13,0.00015342,2]
[361033218,1747209139747,-400.0,0.00015342,2]
[361033219,1747209139758,-1026.15,0.00015342,2]
[361033220,1747209139769,-926.7,0.00015342,2]
[361033221,1747209139780,-720.88,0.00015342,2]
[361033222,1747209139790,-828.79,0.00015342,2]
[361033223,1747209139800,-696.91,0.00015342,2]
[361033224,1747209139811,-2110.67,0.00015342,2]
[361033225,1747209139820,-540.58,0.00015342,2]
[361033226,1747209139830,-1784.16,0.00015342,2]
[361033227,1747209139840,-1232.7,0.00015342,2]
[361033228,1747209139850,-400.0,0.00015342,2]
[361033229,1747209139860,-400.0,0.00015342,2]
[361033230,1747209139870,-1246.63,0.00015342,2]
[361033231,1747209139880,-1031.46,0.00015342,2]
[361033232,1747209139890,-915.16,0.00015342,2]
[361033233,1747209139899,-614.08,0.00015342,2]
[361033234,1747209139909,-400.0,0.00015342,2]
[361033235,1747209139919,-415.13,0.00015342,2]
[361033236,1747209139929,-8117.6,0.00015342,2]
[361033237,1747209139939,-400.0,0.00015342,2]
[361033238,1747209139948,-1273.28,0.00015342,2]
[361033239,1747209139958,-400.0,0.00015342,2]
[361033240,1747209139967,-400.0,0.00015342,2]
[361033241,1747209139976,-2424.58,0.00015342,2]
[361033242,1747209139986,-447.54,0.00015342,2]
[361033243,1747209139996,-400.0,0.00015342,2]
[361033244,1747209140008,-723.09,0.00015342,2]
[361033245,1747209140018,-1958.39,0.00015342,2]
[361033246,1747209140028,-422.1,0.00015342,2]
[361033247,1747209140038,-2526.26,0.00015342,2]
[361033248,1747209140048,-2914.11,0.00015342,2]
[361033249,1747209140057,-803.6,0.00015342,2]
[361033250,1747209140067,-8091.9,0.00015342,2]
[361033251,1747209140077,-599.26,0.00015342,2]
[361033252,1747209140087,-905.05,0.00015342,2]
[361033253,1747209140097,-805.31,0.00015342,2]
[361033254,1747209140107,-1722.0,0.00015342,2]
[361033255,1747209140116,-400.0,0.00015342,2]
[361033256,1747209140127,-981.33,0.00015342,2]
[361033257,1747209140136,-2000.0,0.00015342,2]
[361033258,1747209140146,-1312.50527946,0.00015342,2]
[361033259,1747209140156,-2000.0,0.00015342,2]
[361033260,1747209140165,-2120.70413071,0.00015342,2]
[361033261,1747209140175,-2000.0,0.00015342,2]
[361033262,1747209140184,-2138.77655168,0.00015342,2]
[361033263,1747209140192,-1010.2681415,0.00015342,2]
[361033264,1747209140202,-1599.91475408,0.00015342,2]
[361033265,1747209140211,-2000.0,0.00015342,2]
[361033266,1747209140221,-1059.20930741,0.00015342,2]
[361033267,1747209140231,-2000.0,0.00015342,2]
[361033268,1747209140241,-1194.95985969,0.00015342,2]
[361033269,1747209140252,-2000.0,0.00015342,2]
[361033270,1747209140262,-2000.0,0.00015342,2]
[361033271,1747209140272,-2000.0,0.00015342,2]
[361033272,1747209140281,-2000.0,0.00015342,2]
[361033273,1747209140291,-538.7921396,0.00015379,2]
[361033274,1747209140301,-491.09760148,0.000154,2]
[361033275,1747209140310,-442.8516722,0.00015424,2]
[361033276,1747209140319,-398.86540225,0.00015436,2]
[361033277,1747209140328,-5800.0,0.00015455,2]
[361033278,1747209140338,-5800.0,0.00015463,2]
[361033279,1747209140347,-5800.0,0.00015471,2]
[361033280,1747209140356,-5800.0,0.0001548,2]
[361033281,1747209140367,-151.0,0.0001548,2]
[361033282,1747209140380,-2603.784095,0.0001548,2]
[361033283,1747209140389,-151.0,0.0001548,2]
[361033284,1747209140400,-2603.784095,0.0001548,2]
[361033285,1747209140410,-517.613398,0.0001548,2]
[361033286,1747209140420,-517.613398,0.0001548,2]
[361033287,1747209140429,-195.279798,0.0001548,2]
[361033288,1747209140438,-195.279798,0.0001548,2]
[361033289,1747209140448,-151.0,0.00015488,2]
[361033290,1747209140456,-185.07651,0.00015488,2]
[361033291,1747209140465,-185.07651,0.00015488,2]
[361033292,1747209140474,-291.856387,0.00015488,2]
[361033293,1747209140483,-2230.886208,0.00015488,2]
[361033294,1747209140492,-2230.886208,0.00015488,2]
[361033295,1747209140502,-454.255713,0.00015488,2]
[361033296,1747209140512,-454.255713,0.00015488,2]
[361033297,1747209140521,-5800.0,0.00015489,2]
[361033298,1747209140530,-5800.0,0.00015497,2]
[361033299,1747209140538,-151.0,0.00015497,2]
[361033300,1747209140548,-151.0,0.00015497,2]
[361033301,1747209140556,-5800.0,0.00015506,2]
[361033302,1747209140565,-5800.0,0.00015514,2]
[361033303,1747209140574,-174.620918,0.00015514,2]
[361033304,1747209140583,-174.620918,0.00015514,2]
[361033305,1747209140592,-151.0,0.00015514,2]
[361033306,1747209140601,-517.686712,0.00015514,2]
[361033307,1747209140610,-517.686712,0.00015514,2]
[361033308,1747209140619,-296.737575,0.00015514,2]
[361033309,1747209140626,-183.963342,0.00015514,2]
[361033310,1747209140633,-183.963342,0.00015514,2]
[361033311,1747209140641,-201.37144861,0.00015516,2]
[361033312,1747209140648,-5800.0,0.00015523,2]
[361033313,1747209140658,-5800.0,0.00015531,2]
[361033314,1747209140668,-5800.0,0.00015539,2]
[361033315,1747209140678,-5800.0,0.00015548,2]
[361033316,1747209140688,-366.589693,0.00015548,2]
[361033317,1747209140698,-366.589693,0.00015548,2]
[361033318,1747209140708,-5800.0,0.00015557,2]
[361033319,1747209140718,-5800.0,0.00015565,2]
[361033320,1747209140728,-151.0,0.00015565,2]
[361033321,1747209140738,-151.0,0.00015565,2]
[361033322,1747209140747,-151.0,0.00015565,2]
[361033323,1747209140757,-151.0,0.00015565,2]
[361033324,1747209140768,-151.0,0.00015565,2]
[361033325,1747209140778,-3381.800601,0.00015565,2]
[361033326,1747209140788,-3381.800601,0.00015565,2]
[361033327,1747209140798,-198.56573352,0.00015567,2]
[361033328,1747209140807,-286.542734,0.00015573,2]
[361033329,1747209140817,-781.536897,0.00015573,2]
[361033330,1747209140826,-151.0,0.00015573,2]
[361033331,1747209140835,-151.0,0.00015573,2]
[361033332,1747209140845,-330.202027,0.00015573,2]
[361033333,1747209140854,-330.202027,0.00015573,2]
[361033334,1747209140864,-159.653133,0.00015573,2]
[361033335,1747209140873,-159.653133,0.00015573,2]
[361033336,1747209140883,-157.269919,0.00015573,2]
[361033337,1747209140893,-151.0,0.00015573,2]
[361033338,1747209140903,-151.0,0.00015573,2]
[361033339,1747209140912,-151.0,0.00015573,2]
[361033340,1747209140922,-173.76227,0.00015573,2]
[361033341,1747209140932,-173.76227,0.00015573,2]
[361033342,1747209140942,-5800.0,0.00015574,2]
[361033343,1747209140952,-5800.0,0.00015582,2]